bitfinex/quotes_ETHUSD_20251119
["timestamp","ask_amount","ask_price","bid_price","bid_amount"]
[1763563836708,0.405504,3055.5,3055.4,0.001]
[1763563837104,0.4777,3056.4,3055.4,0.001]
[1763563837105,0.093,3056.8,3055.4,0.5006]
[1763563837336,0.4777,3057.4,3055.4,0.5006]
[1763563837747,0.4769,3057.4,3055.4,0.5006]
[1763563838260,0.4769,3057.4,3055.6,0.90699264]
[1763563838422,0.4769,3057.4,3055.7,1.20065662]
[1763563838823,0.4769,3057.4,3055.7,0.4554]
[1763563839026,0.405504,3057.3,3055.7,0.4554]
[1763563839455,0.405504,3057.5,3055.7,0.4554]
[1763563839722,0.70657259,3057.5,3055.7,0.4554]
[1763563839927,0.4813,3057.5,3055.7,0.4554]
[1763563840226,1.17167351,3057.7,3055.7,1.36239264]
[1763563840428,2.04641511,3057.6,3055.4,0.001]
[1763563840646,0.405504,3056.9,3055.4,0.001]
[1763563840857,0.405504,3056.7,3055.4,0.001]
[1763563841191,0.405504,3056.5,3055.4,0.001]
[1763563841458,0.405504,3056.4,3055.4,0.001]
[1763563841623,1.09587751,3056.4,3055.5,0.4554]
[1763563841822,0.405504,3056.6,3055.5,0.4554]
[1763563842063,0.405504,3056.6,3055.4,0.001]
[1763563842277,0.405504,3056.4,3055.4,0.001]
[1763563842566,1.09587751,3056.4,3055.4,0.001]
[1763563842862,2.17019267,3056.2,3055.4,0.001]
[1763563843173,0.405504,3056.0,3055.4,0.001]
[1763563843380,0.405504,3055.8,3055.4,0.001]
[1763563843660,0.69900755,3055.9,3055.4,0.4564]
[1763563843881,0.69900971,3056.1,3055.4,0.4564]
[1763563844031,0.69900971,3056.2,3055.4,0.4564]
[1763563844227,0.69902091,3056.5,3055.5,0.03272786]
[1763563844427,0.85969603,3057.4,3056.1,0.1975]
[1763563844655,0.002,3057.8,3057.2,0.1975]
[1763563844860,0.002,3057.8,3057.3,0.4554]
[1763563845079,0.002,3058.1,3057.3,0.4554]
[1763563845467,0.002,3058.1,3058.0,0.1975]
[1763563845985,0.002,3058.1,3058.0,0.6529]
[1763563846360,0.002,3058.1,3058.0,2.04290465]
[1763563846753,0.002,3058.1,3058.0,1.55989264]
[1763563846949,0.002,3058.1,3058.0,4.83000382]
[1763563847154,0.002,3058.1,3058.0,1.55989264]
[1763563847573,0.002,3058.1,3058.0,0.90699264]
[1763563847772,0.002,3058.1,3058.0,1.36239264]
[1763563849004,0.002,3058.1,3058.0,5.09577332]
[1763563849289,0.7004538,3059.6,3058.1,0.90699264]
[1763563849496,0.1896,3059.8,3058.1,0.4554]
[1763563849664,1.67347264,3059.8,3058.2,0.4554]
[1763563850016,0.88873257,3059.8,3058.2,0.4554]
[1763563850217,0.69913257,3059.9,3058.4,0.90699264]
[1763563850415,0.1896,3060.4,3058.5,1.20005734]
[1763563850740,1.16504555,3060.8,3058.6,0.90699264]
[1763563850741,0.85769603,3060.8,3058.6,0.90699264]
[1763563851015,0.88844388,3061.0,3058.6,1.36239264]
[1763563851179,0.78460398,3060.9,3058.7,0.4554]
[1763563851378,0.405504,3060.7,3058.7,0.4554]
[1763563851821,0.405504,3060.5,3058.5,0.74465734]
[1763563852032,0.405504,3060.5,3058.2,3.72526179]
[1763563852033,1.26320003,3060.3,3058.2,3.72526179]
[1763563852179,0.405504,3060.1,3058.2,3.72528129]
[1763563852376,0.405504,3060.1,3058.3,0.4554]
[1763563852615,0.405504,3060.0,3058.3,1.36239264]
[1763563853115,0.405504,3060.1,3058.4,0.4554]
[1763563853485,0.69774156,3060.5,3058.4,0.4554]
[1763563853813,1.17904156,3060.8,3058.4,0.4554]
[1763563854029,0.4813,3060.8,3058.4,0.4554]
[1763563854208,0.1896,3061.0,3058.4,0.4554]
[1763563854511,0.6709,3061.0,3058.6,0.90699264]
[1763563854709,0.6709,3061.0,3058.7,1.3985299]
[1763563854878,0.4813,3060.9,3058.7,1.8539299]
[1763563855080,0.405504,3060.8,3058.8,0.4554]
[1763563855288,0.405504,3060.6,3058.9,0.1975]
[1763563855523,0.405504,3060.8,3058.9,0.1975]
[1763563855524,0.1896,3061.0,3058.9,0.1975]
[1763563855820,0.1896,3061.0,3059.0,0.4554]
[1763563856386,0.6709,3061.0,3059.2,0.90699264]
[1763563856725,0.1896,3061.4,3059.3,1.07137985]
[1763563856884,0.405504,3061.1,3059.3,1.52677985]
[1763563857083,0.405504,3061.1,3059.4,0.4554]
[1763563857425,0.1896,3061.2,3059.4,0.4554]
[1763563858013,0.405504,3061.1,3059.4,0.4554]
[1763563858209,0.405504,3061.1,3059.5,0.16417799]
[1763563858602,0.405504,3061.1,3059.6,1.36239264]
[1763563858893,0.405504,3060.9,3059.6,0.4554]
[1763563859095,0.405504,3060.9,3059.5,0.16417799]
[1763563859311,0.405504,3060.7,3059.3,0.4554]
[1763563859682,0.405504,3060.5,3059.3,0.4554]
[1763563860102,0.405504,3061.1,3059.3,0.4554]
[1763563860301,0.405504,3060.4,3059.3,0.4554]
[1763563860508,0.405504,3059.3,3057.9,0.4554]
[1763563860790,0.405504,3059.1,3057.4,0.4554]
[1763563861016,0.405504,3058.9,3056.1,0.1975]
[1763563861218,0.405504,3058.9,3056.9,0.1975]
[1763563861400,0.405504,3058.7,3056.9,0.1975]
[1763563861722,0.405504,3058.5,3056.9,0.99979792]
[1763563861902,0.405504,3058.3,3056.9,0.6529]
[1763563862099,0.405504,3058.3,3056.9,1.55989264]
[1763563862303,0.405504,3059.1,3057.1,3.27107389]
[1763563862491,0.404704,3059.1,3057.2,1.36239264]
[1763563862689,0.886004,3059.1,3057.3,0.4554]
[1763563863225,0.4813,3059.0,3057.7,0.001]
[1763563863401,0.1896,3059.4,3057.7,0.001]
[1763563863597,0.4813,3059.3,3057.8,0.1975]
[1763563863815,0.4813,3059.3,3057.9,0.4554]
[1763563864030,0.1896,3059.4,3057.9,0.4554]
[1763563864323,0.4813,3059.3,3057.9,0.4554]
[1763563864538,0.405504,3059.2,3057.7,0.001]
[1763563865038,0.405504,3059.3,3057.8,0.4554]
[1763563865200,0.886804,3059.3,3057.8,0.4554]
[1763563865390,5.71488898,3059.2,3057.7,0.001]
[1763563865594,1.67567575,3059.1,3057.7,0.001]
[1763563865809,1.79379664,3059.1,3057.7,0.001]
[1763563866013,0.405504,3058.9,3057.7,0.001]
[1763563866299,0.405504,3058.7,3057.7,0.001]
[1763563866627,0.405504,3059.3,3057.7,0.4564]
[1763563866835,0.886804,3059.3,3057.7,0.4564]
[1763563867194,0.4813,3059.3,3057.7,0.4564]
[1763563867498,0.405504,3059.1,3057.7,0.001]
[1763563867888,1.09659264,3059.4,3057.7,0.001]
[1763563867889,0.405504,3058.9,3057.7,0.001]
[1763563868289,0.405504,3058.7,3057.7,0.001]
[1763563868490,1.31249664,3058.1,3057.7,0.001]
[1763563868690,0.405504,3058.1,3057.7,0.001]
[1763563868928,0.405504,3057.9,3057.7,0.001]
[1763563869293,0.405504,3057.7,3057.4,0.001]
[1763563869494,0.586604,3057.5,3057.4,0.001]
[1763563870111,1.045004,3057.5,3057.4,0.001]
[1763563870315,0.586604,3057.5,3057.4,0.001]
[1763563870517,1.045004,3057.5,3057.4,0.001]
[1763563872691,0.1811,3058.5,3057.4,0.001]
[1763563872896,0.1811,3058.5,3057.4,0.4541]
[1763563873331,0.88705652,3059.4,3057.4,0.4541]
[1763563873516,0.4584,3059.2,3057.4,0.4541]
[1763563874307,0.405504,3059.1,3057.4,0.4541]
[1763563874508,0.405504,3058.8,3057.4,0.001]
[1763563874711,0.4584,3058.7,3057.4,0.001]
[1763563875014,0.405504,3058.6,3057.4,0.001]
[1763563875526,0.405504,3058.5,3057.4,0.001]
[1763563876045,0.405504,3058.7,3057.4,0.001]
[1763563876435,0.405504,3058.5,3057.4,0.001]
[1763563876831,0.405504,3058.3,3057.4,0.001]
[1763563877339,0.405504,3058.2,3057.4,0.001]
[1763563877538,0.405504,3058.0,3057.4,0.001]
[1763563877918,0.405504,3058.2,3057.4,0.001]
[1763563878353,0.4584,3059.2,3057.5,0.4531]
[1763563878514,0.1896,3059.4,3057.5,0.4531]
[1763563878515,0.1896,3059.4,3057.6,0.90699264]
[1763563878713,1.62344555,3059.9,3057.6,0.90699264]
[1763563878714,0.4584,3059.9,3057.7,0.46633617]
[1763563878956,0.4584,3059.9,3057.7,0.91943617]
[1763563879128,0.4584,3059.8,3057.8,0.4531]
[1763563879845,0.405504,3059.7,3057.8,0.4531]
[1763563880167,0.405504,3059.3,3057.8,0.4531]
[1763563880311,1.31249664,3059.3,3057.8,0.4531]
[1763563880770,1.31249664,3059.3,3057.4,0.001]
[1763563880771,0.405504,3059.1,3057.4,0.001]
[1763563881111,0.405504,3058.9,3057.6,0.001]
[1763563881523,0.405504,3058.7,3057.6,0.001]
[1763563881724,0.405504,3058.5,3057.6,0.001]
[1763563882025,0.90699264,3058.7,3057.6,0.001]
[1763563882026,0.405504,3058.3,3057.6,0.001]
[1763563882225,0.863904,3058.3,3057.6,0.001]
[1763563882750,0.405504,3058.2,3057.6,0.001]
[1763563882950,0.405504,3058.9,3057.7,0.1934]
[1763563883150,0.405504,3058.9,3057.6,0.001]
[1763563883151,0.863904,3058.9,3057.6,0.001]
[1763563883649,0.405504,3058.7,3057.6,0.001]
[1763563883852,1.61562168,3058.7,3057.6,0.001]
[1763563884052,0.405504,3058.5,3057.6,0.001]
[1763563884549,5.71488898,3058.8,3057.6,0.001]
[1763563884550,0.405504,3058.3,3057.6,0.001]
[1763563885150,0.405504,3058.6,3057.6,0.001]
[1763563885350,0.405504,3057.7,3057.6,0.001]
[1763563886052,0.895504,3057.7,3057.6,0.001]
[1763563886752,0.405504,3057.6,3057.4,0.001]
[1763563887057,0.405504,3057.8,3057.4,0.001]
[1763563887240,0.895504,3057.8,3057.4,0.001]
[1763563887630,0.404704,3057.8,3057.4,0.001]
[1763563887829,1.34769603,3058.6,3057.4,0.001]
[1763563888022,0.69963632,3058.5,3057.4,0.001]
[1763563888352,0.79418914,3058.4,3057.4,0.001]
[1763563888656,0.0601,3059.0,3057.5,0.4987]
[1763563888952,0.36440134,3059.0,3057.5,0.4987]
[1763563889153,1.00546267,3059.1,3057.5,0.4987]
[1763563889353,0.30427831,3059.0,3057.5,0.4987]
[1763563889654,0.85769603,3058.7,3057.4,0.001]
[1763563889820,0.70978231,3058.6,3057.4,0.001]
[1763563890023,2.10677495,3058.6,3057.4,0.001]
[1763563890374,0.405504,3058.4,3057.4,0.001]
[1763563890586,1.41094364,3058.4,3057.4,0.001]
[1763563890872,0.405504,3057.5,3057.4,0.001]
[1763563892679,0.590004,3057.5,3057.4,0.001]
[1763563893165,0.895504,3057.5,3057.4,0.001]
[1763563893676,1.19998111,3057.5,3057.4,0.001]
[1763563893827,2.05767714,3057.5,3057.4,0.001]
[1763563894031,2.05767714,3057.5,3057.0,0.001]
[1763563894032,1.80249664,3057.4,3057.0,0.001]
[1763563894262,2.48089427,3057.1,3057.0,0.001]
[1763563894429,2.31854349,3057.1,3057.0,0.001]
[1763563894630,1.10707374,3057.1,3057.0,0.001]
[1763563894849,0.405504,3057.1,3057.0,0.001]
[1763563895424,0.88595614,3058.1,3057.0,0.6887]
[1763563895771,0.70145614,3058.2,3057.1,0.4987]
[1763563895978,0.70145614,3058.3,3057.1,0.4987]
[1763563896130,0.70145614,3058.4,3057.1,0.4987]
[1763563896328,0.30457805,3058.3,3057.0,0.19]
[1763563896558,0.49,3058.3,3057.0,0.001]
[1763563896764,0.405504,3058.2,3057.0,0.001]
[1763563896975,2.31853083,3058.2,3057.0,0.001]
[1763563897158,0.405504,3058.0,3056.7,0.6877]
[1763563897331,0.70145614,3058.1,3056.8,0.4987]
[1763563897545,1.39699264,3058.2,3056.8,0.4987]
[1763563897745,1.41176944,3058.1,3056.8,0.4987]
[1763563897972,1.10696014,3058.1,3056.8,0.4987]
[1763563898389,1.10696014,3058.1,3056.7,0.14]
[1763563898390,0.405504,3057.9,3056.7,0.14]
[1763563898569,0.405504,3057.9,3056.7,0.6124]
[1763563898774,1.10696014,3057.9,3056.7,0.6124]
[1763563898975,0.405504,3058.1,3056.8,0.4724]
[1763563899302,0.87635431,3058.9,3058.0,0.1905]
[1763563899467,0.75568024,3059.0,3058.0,0.1905]
[1763563899789,0.002,3058.3,3058.0,0.6629]
[1763563900201,0.002,3058.3,3058.1,0.4724]
[1763563900808,0.002,3058.3,3056.8,0.001]
[1763563900959,0.1933,3056.9,3056.8,0.001]
[1763563901159,0.405504,3056.9,3056.8,0.001]
[1763563902093,0.1845,3057.8,3056.8,0.001]
[1763563902094,0.87635431,3058.2,3056.8,0.4734]
[1763563902391,1.33525431,3058.2,3056.8,0.4734]
[1763563902555,0.405504,3058.1,3056.8,0.4734]
[1763563903693,0.405504,3057.9,3056.8,0.001]
[1763563903858,1.28185831,3057.9,3056.8,0.001]
[1763563904055,1.048904,3057.8,3056.8,0.001]
[1763563904258,0.405504,3057.5,3056.8,0.001]
[1763563904661,1.16839763,3058.0,3056.8,0.001]
[1763563904662,0.87635431,3058.2,3057.4,0.1905]
[1763563904870,1.57867948,3058.5,3057.4,0.1905]
[1763563905091,0.405504,3058.4,3057.4,0.1905]
[1763563905294,0.87635431,3058.5,3057.4,0.1905]
[1763563905594,0.70232517,3058.5,3057.4,0.6629]
[1763563905799,0.002,3058.7,3058.2,0.1905]
[1763563906158,0.002,3058.7,3058.2,0.6629]
[1763563906895,0.002,3058.7,3058.3,0.4724]
[1763563907198,0.002,3058.7,3058.3,1.77267182]
[1763563907498,0.002,3058.7,3058.4,0.4724]
[1763563908295,0.002,3059.0,3058.4,0.4724]
[1763563908461,0.002,3059.0,3058.9,0.1905]
[1763563908662,0.002,3059.9,3059.0,0.90699264]
[1763563908862,0.002,3059.9,3059.1,0.52736343]
[1763563909105,0.002,3059.9,3059.2,0.4724]
[1763563909798,0.002,3059.9,3058.9,0.1905]
[1763563910185,0.002,3059.9,3058.9,0.6629]
[1763563910499,0.405504,3059.8,3058.3,0.4724]
[1763563910867,0.4589,3059.7,3058.3,0.4724]
[1763563911088,0.405504,3059.6,3057.6,0.4724]
[1763563911288,0.405504,3059.6,3058.1,0.1905]
[1763563911687,0.405504,3059.6,3058.2,0.4724]
[1763563912088,0.405504,3059.5,3058.2,0.4724]
[1763563912291,0.864404,3059.5,3058.2,0.4724]
[1763563912586,0.404704,3059.5,3058.2,0.4724]
[1763563912785,0.4589,3059.4,3058.1,0.1905]
[1763563912981,0.4589,3059.4,3057.8,0.4724]
[1763563913182,0.4589,3059.4,3057.4,0.1905]
[1763563913491,0.4589,3059.4,3057.5,0.4724]
[1763563913826,0.404704,3059.5,3057.6,0.03270538]
[1763563914026,0.404704,3059.5,3057.5,1.37939264]
[1763563914228,0.404704,3059.5,3057.6,1.28353955]
[1763563914580,0.405504,3059.7,3057.8,0.90699264]
[1763563914785,0.405504,3059.7,3057.9,0.4724]
[1763563915806,0.002,3059.9,3057.9,0.4724]
[1763563916702,0.002,3059.9,3058.0,0.90699264]
[1763563916899,0.002,3059.9,3058.1,0.46495831]
[1763563917100,0.002,3059.9,3058.1,0.93735831]
[1763563917508,0.002,3059.9,3058.2,0.4724]
[1763563917706,0.002,3059.9,3058.2,1.37939264]
[1763563917893,0.002,3059.9,3058.2,0.4724]
[1763563918238,0.002,3059.9,3058.3,0.4724]
[1763563918604,0.002,3059.9,3058.3,1.37939264]
[1763563919117,0.002,3059.9,3058.4,0.93732034]
[1763563919303,0.002,3059.9,3058.5,0.4724]
[1763563920947,0.002,3059.9,3059.8,0.1905]
[1763563921102,0.002,3059.9,3059.8,0.6629]
[1763563921445,0.002,3059.9,3059.2,0.4724]
[1763563921734,0.002,3059.9,3059.1,0.1905]
[1763563923257,0.002,3059.9,3059.2,1.37939264]
[1763563923420,0.002,3059.9,3059.3,0.48388279]
[1763563923753,0.002,3059.9,3059.3,0.95628279]
[1763563924252,0.002,3059.9,3059.3,0.4724]
[1763563924808,0.002,3059.9,3058.5,0.4724]
[1763563925040,0.002,3059.9,3057.8,3.46076153]
[1763563925041,0.002,3059.9,3058.6,0.4724]
[1763563925250,0.405504,3059.8,3058.6,0.4724]
[1763563925553,0.002,3059.9,3059.8,0.1905]
[1763563925716,0.002,3059.9,3059.8,0.6629]
[1763563925916,0.002,3060.3,3059.8,0.6629]
[1763563926117,0.002,3060.3,3059.9,0.4724]
[1763563926343,0.002,3060.7,3059.9,0.4724]
[1763563926545,0.002,3061.1,3060.2,0.405504]
[1763563926714,0.002,3061.1,3060.5,0.90699264]
[1763563927110,0.002,3061.1,3060.3,4.21560674]
[1763563927111,0.002,3061.1,3060.6,0.4724]
[1763563928753,0.002,3061.4,3060.8,0.90699264]
[1763563928973,0.002,3061.4,3060.9,0.115]
[1763563929271,0.1933,3063.5,3060.9,0.5652]
[1763563929449,0.54595952,3064.1,3061.0,0.405504]
[1763563929450,0.77584688,3064.1,3061.0,0.405504]
[1763563929620,0.4615,3063.4,3061.0,0.4502]
[1763563929814,1.31249664,3063.2,3061.1,0.1931]
[1763563930046,0.405504,3063.0,3061.1,0.1931]
[1763563930365,0.405504,3063.0,3060.6,0.4502]
[1763563930366,1.31249664,3062.6,3060.6,0.4502]
[1763563930716,0.405504,3062.4,3060.6,0.4502]
[1763563931163,0.405504,3062.3,3060.6,0.4502]
[1763563931316,0.405504,3062.3,3060.1,0.4502]
[1763563931640,0.90699264,3062.6,3060.1,0.4502]
[1763563931641,0.405504,3062.1,3060.1,1.35719264]
[1763563932037,0.1843,3062.4,3060.2,0.4502]
[1763563932242,0.405504,3062.3,3060.2,0.4502]
[1763563932439,0.1843,3062.8,3060.3,7.36487079]
[1763563932654,0.4615,3063.2,3060.3,7.36487079]
[1763563932655,0.6458,3063.2,3062.2,0.1946]
[1763563933020,0.1843,3063.2,3062.0,0.6448]
[1763563933419,0.6458,3063.2,3062.0,0.1946]
[1763563933717,0.405504,3063.1,3061.6,0.1946]
[1763563934062,0.405504,3062.9,3061.6,0.6448]
[1763563934421,0.405504,3063.1,3061.7,0.4502]
[1763563934742,0.867004,3063.1,3061.7,0.4502]
[1763563934946,0.002,3062.5,3061.7,0.4502]
[1763563935208,0.002,3062.5,3061.8,0.90699264]
[1763563935487,0.002,3062.5,3061.9,0.46233315]
[1763563935691,0.002,3062.5,3061.9,0.91253315]
[1763563936043,0.002,3062.5,3062.0,0.4502]
[1763563936243,0.002,3062.9,3062.1,0.405504]
[1763563936446,0.002,3062.9,3062.8,0.1946]
[1763563936681,0.002,3062.9,3062.8,0.6448]
[1763563936844,0.002,3062.9,3062.1,0.405504]
[1763563936845,0.002,3062.9,3062.4,0.1946]
[1763563937478,0.0012,3062.9,3062.4,0.1946]
[1763563937886,0.0012,3062.9,3062.4,0.6448]
[1763563938559,0.0012,3062.9,3062.5,0.4502]
[1763563940827,0.0012,3062.9,3062.6,0.90699264]
[1763563941118,0.0012,3062.9,3062.8,4.17197892]
[1763563941300,0.0012,3062.9,3062.8,1.35719264]
[1763563941613,0.0012,3062.9,3062.8,0.90699264]
[1763563941905,0.0012,3062.9,3062.4,0.1946]
[1763563942226,0.0012,3062.9,3061.6,1.10159264]
[1763563942371,0.0012,3062.9,3061.8,0.4502]
[1763563942720,0.0012,3062.9,3062.8,0.1946]
[1763563943219,0.0012,3062.9,3061.8,0.4502]
[1763563943220,0.0012,3062.9,3062.5,0.1946]
[1763563943420,0.0012,3062.9,3062.2,0.4502]
[1763563944035,0.0012,3062.9,3061.2,0.90699264]
[1763563944036,0.406704,3062.9,3061.6,0.6448]
[1763563944180,0.405504,3062.7,3061.6,0.6448]
[1763563944676,0.0012,3062.9,3061.6,1.10159264]
[1763563944882,0.0012,3062.9,3061.7,0.90278627]
[1763563945185,0.0012,3062.9,3062.0,0.90699264]
[1763563945413,0.0012,3062.9,3062.0,1.37299264]
[1763563945613,0.0012,3062.9,3062.0,0.466]
[1763563945931,0.406704,3062.9,3061.6,0.1946]
[1763563946107,0.405504,3062.7,3061.2,1.09489264]
[1763563946281,0.405504,3062.7,3061.2,0.1879]
[1763563946488,0.405504,3062.5,3061.0,0.466]
[1763563946836,0.405504,3062.5,3060.5,0.466]
[1763563947009,0.405504,3062.3,3060.5,0.466]
[1763563947503,0.1058,3062.2,3060.6,0.90699264]
[1763563947824,0.405504,3062.1,3060.7,0.79077885]
[1763563948029,0.405504,3062.1,3060.6,1.37299264]
[1763563948341,0.1904,3062.5,3060.6,1.37299264]
[1763563948342,0.863604,3062.4,3060.7,0.115]
[1763563948506,0.405504,3062.2,3060.6,0.466]
[1763563948898,0.405504,3062.0,3060.6,0.466]
[1763563949110,0.405504,3062.0,3060.7,0.90699264]
[1763563949446,0.405504,3062.0,3060.8,0.46402973]
[1763563949753,0.405504,3062.0,3060.2,0.115]
[1763563949754,0.405504,3061.8,3060.1,0.466]
[1763563949899,1.86675374,3062.4,3060.1,1.37299264]
[1763563949900,0.69835611,3062.1,3060.1,1.37299264]
[1763563950252,0.405504,3062.3,3060.2,0.115]
[1763563950391,0.405504,3062.3,3060.2,0.581]
[1763563950834,0.405504,3062.4,3060.3,0.405504]
[1763563951012,0.4581,3062.7,3060.4,1.02199264]
[1763563951327,0.69908276,3063.0,3060.5,1.08249531]
[1763563951328,0.405504,3062.5,3060.5,1.08249531]
[1763563951532,0.405504,3062.7,3060.6,0.405504]
[1763563951699,0.405504,3062.7,3060.6,0.871504]
[1763563952028,0.405504,3062.7,3060.6,0.466]
[1763563952029,0.405504,3062.6,3060.6,0.466]
[1763563952216,0.405504,3062.6,3060.7,0.466]
[1763563952416,0.4581,3062.5,3060.7,0.466]
[1763563952805,0.405504,3062.4,3060.7,0.466]
[1763563953006,1.10458676,3062.4,3060.9,0.90699264]
[1763563953240,0.405504,3062.6,3061.0,0.41741123]
[1763563953425,0.405504,3062.3,3060.5,1.08249531]
[1763563953744,1.28185831,3062.1,3060.2,0.466]
[1763563953896,1.28185831,3062.1,3059.8,0.1915]
[1763563953897,0.405504,3061.7,3060.1,0.467]
[1763563954102,0.405504,3061.5,3060.1,0.467]
[1763563954608,0.405504,3061.3,3060.1,0.001]
[1763563954950,0.405504,3061.1,3060.1,0.001]
[1763563955098,0.405504,3060.9,3060.1,0.1889]
[1763563955302,0.69908276,3061.2,3060.2,0.466]
[1763563955543,0.405504,3061.1,3060.2,0.466]
[1763563955904,0.405504,3061.3,3060.2,0.466]
[1763563956104,0.405504,3061.1,3060.1,0.1889]
[1763563956332,0.405504,3061.2,3060.1,0.1889]
[1763563956542,0.405504,3061.2,3060.1,0.6549]
[1763563956757,0.1904,3062.0,3061.1,0.1879]
[1763563956924,0.70201274,3061.9,3060.6,0.466]
[1763563957124,0.70201274,3061.9,3060.6,1.37299264]
[1763563957432,0.1904,3062.2,3060.7,1.37103305]
[1763563957760,0.1904,3062.2,3060.8,0.4846]
[1763563957946,0.70196439,3062.5,3060.8,0.4846]
[1763563958114,0.0012,3062.9,3062.1,0.1859]
[1763563958512,0.0012,3062.9,3062.1,0.6705]
[1763563958712,0.0012,3062.9,3062.2,0.4846]
[1763563959144,0.0012,3062.9,3062.2,1.39159264]
[1763563959342,0.0012,3062.9,3062.2,0.4846]
[1763563960714,0.0012,3062.9,3062.2,1.39159264]
[1763563960933,0.0012,3062.9,3062.3,0.48432231]
[1763563961143,0.0012,3062.9,3062.3,0.4846]
[1763563961418,0.0012,3062.9,3062.3,1.39159264]
[1763563961632,0.0012,3062.9,3062.1,0.1859]
[1763563961865,0.0012,3062.9,3062.2,0.4846]
[1763563962663,0.0004,3062.9,3062.2,1.39159264]
[1763563962851,0.0004,3062.9,3062.3,0.81088547]
[1763563963054,0.0004,3062.9,3062.4,0.4846]
[1763563963362,0.0004,3062.9,3062.5,0.90699264]
[1763563963854,0.0004,3062.9,3062.6,0.4846]
[1763563965563,0.0004,3062.9,3062.1,0.1859]
[1763563965734,0.0004,3062.9,3062.1,1.09289264]
[1763563965935,0.1877,3062.9,3062.2,0.48432585]
[1763563966147,0.1877,3062.9,3062.2,0.4846]
[1763563966148,0.0004,3062.9,3062.2,0.4846]
[1763563966981,0.0004,3062.9,3062.2,1.39159264]
[1763563967270,0.0004,3062.9,3062.4,0.90699264]
[1763563967477,0.0004,3062.9,3062.4,0.4846]
[1763563967679,0.0004,3062.9,3062.2,1.02199264]
[1763563967961,0.0004,3062.9,3062.5,0.4846]
[1763563970808,0.0004,3062.9,3062.2,0.90699264]
[1763563970982,0.0004,3062.9,3062.2,0.4846]
[1763563971304,0.0004,3062.9,3062.4,0.90699264]
[1763563971504,0.0004,3062.9,3062.5,0.4657022]
[1763563971706,0.0004,3062.9,3062.5,0.9503022]
[1763563971939,0.4615,3062.8,3061.6,0.1859]
[1763563972209,0.4615,3062.8,3061.6,0.6705]
[1763563972369,0.1877,3062.9,3061.6,0.6705]
[1763563972573,0.1877,3062.9,3061.7,0.4846]
[1763563973404,0.1877,3062.9,3061.7,1.39159264]
[1763563973611,0.1877,3062.9,3061.8,0.48437512]
[1763563973773,0.0004,3062.9,3061.9,0.14765945]
[1763563973974,0.0004,3062.9,3061.8,1.87596776]
[1763563974274,0.1877,3062.9,3061.9,0.5996]
[1763563974474,0.0004,3062.9,3062.0,0.19909678]
[1763563974916,0.0004,3062.9,3062.1,0.4846]
[1763563975997,0.0004,3062.9,3062.1,1.39159264]
[1763563976171,0.1877,3062.9,3062.1,0.4846]
[1763563976493,0.1877,3062.9,3062.1,1.39159264]
[1763563976731,0.1877,3062.9,3062.2,0.4856467]
[1763563977110,0.0004,3062.9,3062.2,1.39263934]
[1763563977302,0.0004,3062.9,3062.3,0.4846]
[1763563977742,0.0004,3062.9,3062.3,1.39159264]
[1763563978043,0.0004,3062.9,3062.4,0.90699264]
[1763563978225,0.0004,3062.9,3062.5,0.46570783]
[1763563978548,0.0004,3062.9,3062.3,0.4846]
[1763563978849,0.1877,3062.9,3062.0,0.68369678]
[1763563979007,0.0004,3062.9,3062.1,1.39159264]
[1763563979419,0.0004,3062.9,3062.1,0.4846]
[1763563979633,0.1873,3062.8,3062.2,0.90699264]
[1763563979810,0.6488,3062.8,3061.6,3.936766]
[1763563980023,0.1877,3062.9,3061.7,0.8782766]
[1763563980381,0.0004,3062.9,3061.8,0.5996]
[1763563981653,0.1877,3062.9,3062.0,0.90699264]
[1763563981857,0.1877,3062.9,3062.0,1.02199264]
[1763563982045,0.1877,3062.9,3062.1,0.42879386]
[1763563982445,0.0004,3062.9,3062.2,0.4846]
[1763563982753,0.0004,3062.9,3062.2,1.39159264]
[1763563983154,0.0004,3062.9,3062.3,0.4846]
[1763563983354,0.0004,3062.9,3062.4,0.115]
[1763563983543,0.0004,3062.9,3062.6,0.90699264]
[1763563983745,0.0004,3062.9,3062.7,0.41722988]
[1763563983945,0.0004,3062.9,3062.5,1.50659264]
[1763563984172,0.0004,3062.9,3062.5,0.4846]
[1763563984482,0.1877,3062.9,3062.1,1.3357865]
[1763563984665,0.1877,3062.9,3062.0,0.115]
[1763563984869,0.1877,3062.9,3062.0,0.90699264]
[1763563985067,0.6492,3062.9,3061.8,0.4846]
[1763563985252,0.1877,3062.9,3061.9,0.90699264]
[1763563985454,0.1877,3062.9,3061.8,3.75061985]
[1763563985651,0.6492,3062.9,3061.9,0.38656199]
[1763563985870,0.1877,3062.9,3061.9,0.38656199]
[1763563986181,0.0004,3062.9,3062.0,0.5996]
[1763563986871,0.0004,3062.9,3062.3,0.90699264]
[1763563987075,0.0004,3062.9,3062.8,0.90699264]
[1763563987239,0.0004,3062.9,3062.8,1.79549349]
[1763563987444,0.0016,3063.2,3063.1,4.35755915]
[1763563987767,0.002,3065.1,3063.2,0.90699264]
[1763563988078,0.002,3065.1,3063.1,11.32504283]
[1763563988079,0.4965,3065.0,3063.7,0.90699264]
[1763563988279,0.4965,3065.0,3063.8,0.115]
[1763563988583,0.097,3064.9,3063.8,0.75235099]
[1763563988874,0.1951,3063.9,3063.1,0.1859]